[Event "Szansa Chess Open 2022"]
[Site "Warsaw"]
[Date "2022.09.18"]
[Round "10.21"]
[White "Fudala, Dominik"]
[Black "Borawski, Jakub"]
[Result "1/2-1/2"]
[ECO "C77"]
[WhiteElo "1537"]
[BlackElo "2222"]
[Annotator "TA"]
[PlyCount "155"]
[EventDate "2022.09.17"]
[EventCountry "POL"]
[SourceTitle "playchess.com"]
[Source "ChessBase"]
[SourceQuality "1"]
[TimeControl "900+10"]

{[%evp 10,155,22,5,19,14,7,12,22,12,16,-28,-20,-39,-41,-43,-27,-25,-21,-23,-10,-2,32,6,20,0,-1,-16,0,0,0,-113,-112,-109,-114,-112,-103,-185,-18,-34,-29,-27,-33,-36,-25,-20,-37,-35,-31,-26,-26,-145,-128,-127,-126,-127,-128,-105,-111,-109,-39,-147,-134,-167,-103,-103,-103,-103,-103,-104,-104,-127,-99,-118,-104,-131,-110,-121,-121,-121,-121,-121,-79,-121,-95,-121,-121,-121,-121,-121,-121,-121,-121,-121,-121,-121,-31,-31,-31,-31,-31,-31,-31,-31,-31,-31,-31,-31,-31,-31,-31,-31,-31,-31,-31,-31,0,0,0,0,0,0,0,0,0,0,0,0,0,0,0,0,0,0,0,0,0,0,0,0,0,0,0,0,0,0,0,0]} 1. e4 {[%emt 0:00:02]} e5 {[%emt 0:00:01]} 2. Nf3 {[%emt 0:00:06]} Nc6 {[%emt 0:00:02]} 3. Bb5 {[%emt 0:00:01]} a6 {[%emt 0:00:01]} 4. Ba4 {[%emt 0:00:01]} Nf6 {[%emt 0:00:01]} 5. d3 {[%emt 0:00:01]} d6 {[%emt 0:00:09]} 6. h3 {[%emt 0:00:11]} g6 $1 {[%emt 0:00:04][%mdl 4] outshines the older 6...Be7. C77: Ruy Lopez: 3...a6 4 Ba4 Nf6, unusual lines.} (6... b5 $5 7. Bb3 $8 Be7 $11) 7. O-O {[%emt 0:00:15]} b5 {[%emt 0:00:07]} 8. Bb3 {[%emt 0:00:02] Black should prevent Ng5.} Bg7 {[%emt 0:00:01]} 9. c3 {[%emt 0:00:22]} O-O {[%emt 0:00:04]} 10. d4 {[%emt 0:00:08]} Bb7 {[%emt 0:00:32]} (10... Nxe4 $2 11. Bd5 Qd7 12. Bxe4 $18) 11. Re1 {[%emt 0:03:03]} exd4 {[%emt 0:01:34]} 12. cxd4 {[%emt 0:00:18] [#]} Na5 $146 {[%emt 0:00:02]} (12... Re8 {keeps more tension.} 13. Bg5 Na5 14. Nbd2 h6) ({Predecessor:} 12... h6 13. Bd2 Re8 14. Qc2 Nd7 15. e5 Nf8 16. Na3 dxe5 17. dxe5 Ne6 18. Qc1 Ncd4 19. Nxd4 Nxd4 {1-0 (34) Terao,J (2290)-Coelho,T (1776) Rio de Janeiro 2017}) 13. Bc2 {[%emt 0:00:06]} Re8 {[%emt 0:00:01][%cal Rf6e4]} 14. Nbd2 {[%emt 0:04:33]} Nc6 {[%emt 0:03:02]} 15. a3 {[%emt 0:01:03]} a5 {[%emt 0:01:28] Prevents b4.} 16. Nf1 {[%emt 0:01:48]} a4 {[%emt 0:00:30]} 17. Bd2 {[%emt 0:00:49]} (17. Bg5 {with more complications.} Na5 18. Ng3 c5 19. e5) 17... Na5 {[%emt 0:00:20][%cal Rf6e4]} 18. Ng3 {[%emt 0:00:06]} Nc4 {[%emt 0:00:42]} 19. Bc3 {[%emt 0:00:03]} Nd7 {[%emt 0:00:55]} 20. d5 {[%emt 0:02:03]} (20. Nd2 $11) 20... Nxb2 $17 {[%emt 0:00:20]} 21. Bxb2 {[%emt 0:01:32]} Bxb2 {[%emt 0:00:02]} 22. Rb1 {[%emt 0:00:01]} Qf6 {[%emt 0:00:15]} 23. Bd3 {[%emt 0:01:10]} (23. e5 $17 Nxe5 24. Nxe5 Bxe5 25. Ne4) 23... c6 $2 {[%emt 0:03:13]} (23... Bxa3 24. Bxb5 Bc8 25. Bxa4 $11) (23... b4 $19 24. Bb5 Red8 25. Bxd7 bxa3) 24. Qc2 $11 {[%emt 0:00:34] [#]} Nc5 $1 {[%emt 0:00:00]} 25. dxc6 $1 {[%emt 0:00:28]} ({Much weaker is} 25. Bxb5 cxb5 26. Rxb2 Nd3 $1 {[%mdl 512]} 27. Qxd3 (27. Rxb5 $2 Nxe1 28. Nxe1 Ba6 $19) 27... Qxb2 $17) 25... Bxc6 {[%emt 0:00:04][%cal Oa8b8] Threatens to win with ...Rab8! This bishop pair is nice.} 26. Bxb5 $1 {[%emt 0:00:28]} Bxb5 {[%emt 0:00:34]} 27. Qxb2 {[%emt 0:00:07]} Qxb2 {[%emt 0:00:48]} 28. Rxb2 {[%emt 0:00:01]} Bc6 {[%emt 0:00:07]} 29. Rd2 {[%emt 0:00:07] Inhibits Nd3.} Bxe4 {[%emt 0:01:00]} (29... Nxe4 {looks sharper.} 30. Nxe4 Bxe4 31. Nd4 Bc6) 30. Rxd6 {[%emt 0:00:29]} (30. Nxe4 $11 {remains equal.} Nxe4 31. Rd4) 30... Bxf3 $17 {[%emt 0:00:15]} 31. Rxe8+ {[%emt 0:00:00]} Rxe8 {[%emt 0:00:01]} 32. gxf3 $11 {[%emt 0:00:01][%mdl 4096] Endgame [#] KRN-KRN} Re1+ $1 {[%emt 0:00:06]} 33. Kg2 {[%emt 0:00:01] [#]} Ra1 $1 {[%emt 0:00:06]} 34. Rc6 {[%emt 0:00:02]} Nb3 {[%emt 0:00:14]} (34... Ne6 $17 35. Rc3 Nf4+ 36. Kh2 Ra2) 35. Ne2 {[%emt 0:00:16]} ({Of course not} 35. Rc8+ Kg7 36. Ra8 Rxa3 $17) (35. Ne4 $15) 35... Rxa3 {[%emt 0:00:05]} 36. Ra6 {[%emt 0:00:26]} Ra1 {[%emt 0:00:25]} (36... Nc5 $19 37. Ra5 Ne6) 37. Nc3 $17 {[%emt 0:00:14]} a3 {[%emt 0:00:20]} 38. Nb5 {[%emt 0:00:09] Inhibits Nd4.} a2 {[%emt 0:00:05]} 39. Nc3 {[%emt 0:00:01]} Nc1 {[%emt 0:00:40]} 40. f4 {[%emt 0:00:07]} Nd3 {[%emt 0:00:57]} 41. Rxa2 {[%emt 0:00:24]} Nxf4+ {[%emt 0:00:02]} 42. Kh2 {[%emt 0:00:13]} Rc1 {[%emt 0:00:27]} 43. Ne2 {[%emt 0:00:16]} Rc4 {[%emt 0:00:18]} 44. Nxf4 {[%emt 0:00:05]} Rxf4 {[%emt 0:00:01] KR-KR} 45. Kg3 {[%emt 0:00:01]} Rb4 {[%emt 0:00:04]} 46. Ra3 {[%emt 0:00:08]} Kg7 {[%emt 0:00:01]} 47. Rc3 {[%emt 0:00:02]} g5 {[%emt 0:00:05]} 48. Rf3 {[%emt 0:00:05]} Kg6 {[%emt 0:00:07]} 49. Rc3 {[%emt 0:00:02]} h5 {[%emt 0:00:03]} 50. Rc5 {[%emt 0:00:15]} Rb3+ {[%emt 0:00:05]} 51. Kg2 {[%emt 0:00:01]} f6 {[%emt 0:00:02]} 52. Rd5 {[%emt 0:00:02]} g4 {[%emt 0:00:17]} (52... h4 $17 53. Rc5 Kf7 54. Rc7+ Kg6) 53. hxg4 $15 {[%emt 0:00:03]} hxg4 {[%emt 0:00:02]} 54. Rc5 {[%emt 0:00:03]} f5 {[%emt 0:00:02]} 55. Rc4 {[%emt 0:00:14]} Kg5 {[%emt 0:00:01]} 56. Rd4 {[%emt 0:00:02]} Rf3 {[%emt 0:00:07]} 57. Rb4 {[%emt 0:00:04]} Rf4 {[%emt 0:00:02]} 58. Rb8 {[%emt 0:00:01]} Ra4 {[%emt 0:00:04]} 59. Rc8 {[%emt 0:00:26]} Kf4 {[%emt 0:00:11]} 60. Rd8 {[%emt 0:00:10]} Ra2 {[%emt 0:00:17] Strongly threatening ...g3.} 61. Rd4+ {[%emt 0:00:02]} Ke5 {[%emt 0:00:02]} 62. Rb4 {[%emt 0:00:01]} f4 {[%emt 0:01:03]} 63. Rb5+ {[%emt 0:00:00] The position is equal.} Kf6 {[%emt 0:00:09] ...g3 is the strong threat.} 64. Rb4 {[%emt 0:00:09]} Kg5 {[%emt 0:00:01] White must now prevent ...g3.} 65. Rb5+ {[%emt 0:00:01]} Kh4 {[%emt 0:00:04]} 66. Rf5 $1 {[%emt 0:00:05]} f3+ {[%emt 0:00:10]} 67. Kg1 $1 {[%emt 0:00:14]} Ra1+ {[%emt 0:00:01]} 68. Kh2 {[%emt 0:00:02]} Ra2 {[%emt 0:00:36]} 69. Kg1 {[%emt 0:00:02]} Rb2 {[%emt 0:00:01]} 70. Rf8 {[%emt 0:00:46]} Kg5 {[%emt 0:00:37]} (70... Rb1+ 71. Kh2) 71. Rg8+ {[%emt 0:00:08]} Kf5 {[%emt 0:00:16]} 72. Rf8+ {[%emt 0:00:02]} Ke6 {[%emt 0:00:31]} 73. Rg8 {[%emt 0:00:05]} Rb1+ {[%emt 0:00:58]} 74. Kh2 {[%emt 0:00:01]} Rf1 {[%emt 0:00:02]} 75. Rxg4 {[%emt 0:01:06]} Rxf2+ {[%emt 0:00:04]} 76. Kg3 {[%emt 0:00:01]} Kf5 {[%emt 0:00:43] ( -> ...Rg2+)} 77. Rf4+ {[%emt 0:00:02]} Ke5 {[%emt 0:00:01]} 78. Rxf3 {[%emt 0:00:02] Black had all chances to win.  Weighted Error Value: White=0.20 (precise) /Black=0.16 (very precise)} 1/2-1/2

[Event "Szansa Chess Open 2022"]
[Site "Warsaw"]
[Date "2022.09.18"]
[Round "10.22"]
[White "Urbaniak, Karol"]
[Black "Jarocka, Liwia"]
[Result "1-0"]
[ECO "B13"]
[WhiteElo "1598"]
[BlackElo "2131"]
[Annotator "TA"]
[PlyCount "129"]
[EventDate "2022.09.17"]
[EventCountry "POL"]
[SourceTitle "playchess.com"]
[Source "ChessBase"]
[SourceQuality "1"]
[TimeControl "900+10"]

{[%evp 13,129,10,22,-40,-10,-6,6,12,16,16,27,29,22,20,48,43,44,48,41,33,64,56,61,56,54,50,91,91,90,90,91,89,103,76,160,153,156,90,114,112,148,154,286,298,279,282,247,250,265,265,472,454,837,808,1038,777,889,503,508,221,419,0,516,506,486,505,470,484,521,515,627,620,639,617,605,593,731,710,1089,612,1075,598,936,920,1450,1406,1340,1077,12824,12832,5306,0,1635,0,2478,0,1742,1694,1175,978,12838,12838,12843,12842,29986,12841,12841,12841,29972,29974,29972,29965,12847,12847,29977,12847,12848,12847]} 1. e4 {[%emt 0:00:03]} c6 {[%emt 0:00:00]} 2. d4 {[%emt 0:00:06]} d5 {[%emt 0:00:02]} 3. exd5 {[%emt 0:00:02]} cxd5 {[%emt 0:00:01]} 4. Bd3 {[%emt 0:00:06]} Nc6 {[%emt 0:00:01]} 5. c3 {[%emt 0:00:05]} Nf6 {[%emt 0:00:01]} 6. h3 {[%emt 0:00:06]} e5 {[%emt 0:00:02]} 7. dxe5 {[%emt 0:00:16]} Nxe5 {[%emt 0:00:02]} 8. Bg5 {[%emt 0:01:59] B13: Caro-Kann: Exchange Variation and Panov-Botvinnik Attack.} (8. Qe2 $11 Qe7 9. Be3) 8... Nxd3+ {[%emt 0:00:09]} (8... Bc5 {keeps more tension.} 9. Nf3 Nxd3+ 10. Qxd3 Qe7+) 9. Qxd3 {[%emt 0:00:02]} Be7 {[%emt 0:00:05] [#]} 10. Ne2 $146 {[%emt 0:01:59] The position is equal.} ({Predecessor:} 10. Nf3 O-O 11. O-O Be6 12. Nd4 Ne4 13. Bxe7 Qxe7 14. Nd2 Nc5 15. Qf3 g6 16. b4 {½-½ (25) Pozdnyakov,V-Lysukha,N (1759) St Petersburg 2012}) 10... O-O {[%emt 0:00:10]} 11. O-O {[%emt 0:00:03]} Be6 {[%emt 0:01:07]} 12. Nd2 {[%emt 0:00:20]} h6 {[%emt 0:00:20]} 13. Bh4 {[%emt 0:00:19]} Nd7 {[%emt 0:00:57]} 14. Bxe7 {[%emt 0:01:03]} Qxe7 {[%emt 0:00:02]} 15. Nf4 {[%emt 0:00:10]} Qd6 {[%emt 0:00:13]} 16. Qd4 {[%emt 0:00:43]} Rfd8 {[%emt 0:01:38]} 17. Rfe1 {[%emt 0:00:19]} Nf6 {[%emt 0:00:18]} 18. Re3 {[%emt 0:01:14]} Bf5 {[%emt 0:05:15]} 19. Re5 {[%emt 0:01:04]} Be6 {[%emt 0:00:31]} 20. Rae1 {[%emt 0:00:12][%cal Rf4e6]} Re8 {[%emt 0:00:06] [#]} 21. Ne4 $1 {[%emt 0:01:36]} Nxe4 {[%emt 0:00:52]} 22. R5xe4 {[%emt 0:00:08]} Rac8 {[%emt 0:00:46]} 23. Nh5 {[%emt 0:00:28][%csl Gh5][%cal Rd4g7]} Qf8 {[%emt 0:00:13] [#]} (23... f6 $142) 24. R4e3 $1 $36 {[%emt 0:00:30][%mdl 2048] Threatens to win with Rg3. White has strong initiative.} Rc4 {[%emt 0:00:28]} 25. Qe5 {[%emt 0:03:26] White is much more active.} (25. Qd1 $142) 25... f6 {[%emt 0:01:58]} 26. Qg3 {[%emt 0:00:03]} Rc6 {[%emt 0:00:55]} 27. Nf4 {[%emt 0:00:02]} Bf7 {[%emt 0:01:01]} (27... Qf7 $16 {was necessary.} 28. Qf3 (28. Nxd5 Rcc8 $16) 28... Bd7) 28. Rxe8 $18 {[%emt 0:00:20]} Bxe8 {[%emt 0:00:01]} 29. Nxd5 {[%emt 0:00:16]} Kh7 30. Ne7 {[%emt 0:01:37]} Rc5 {[%emt 0:00:45]} 31. Qd3+ {[%emt 0:00:09]} g6 $2 {[%emt 0:01:16]} (31... f5 32. b4 Rc7) 32. Nd5 {[%emt 0:00:35] And now Re7+ would win.} Kh8 {[%emt 0:00:40] [#]} (32... Kg7 $142 33. b4 Rc6 34. Re7+ Bf7 35. Rxb7 Re6) 33. Nxf6 $1 {[%emt 0:00:23][%mdl 512]} Bf7 {[%emt 0:00:17]} (33... Rc8 34. Qd4) 34. Qd4 {[%emt 0:00:15]} Rc4 35. Qe5 {[%emt 0:00:13]} Rc5 {[%emt 0:00:15]} 36. Nd5+ {[%emt 0:00:13]} (36. Qe7 $142 Qxe7 37. Rxe7) 36... Kh7 $2 {[%emt 0:00:03]} (36... Qg7) 37. Nf6+ {[%emt 0:00:14][%cal Bd5f6,Bf6e4,Be4d6][%mdl 32]} Kh8 {[%emt 0:00:03]} 38. Qe7 {[%emt 0:00:21]} Qxe7 {[%emt 0:00:10]} 39. Rxe7 {[%emt 0:00:01][%mdl 4096] Endgame KRB-KRN} Kg7 {[%emt 0:00:08]} 40. Ne4 {[%emt 0:00:04]} Rd5 {[%emt 0:00:02]} 41. Rxb7 {[%emt 0:00:12]} Kf8 {[%emt 0:00:01]} 42. Rxa7 {[%emt 0:00:08]} Rd1+ {[%emt 0:00:02]} 43. Kh2 {[%emt 0:00:01]} Re1 {[%emt 0:00:01]} 44. Nd6 {[%emt 0:00:09]} Bd5 {[%emt 0:00:02]} 45. c4 {[%emt 0:00:13]} Bc6 {[%emt 0:00:01]} 46. Rf7+ {[%emt 0:00:08]} Kg8 {[%emt 0:00:02]} 47. Rf6 {[%emt 0:00:02] Against Re6. b4 is the strong threat.} Re2 {[%emt 0:00:10]} 48. b4 {[%emt 0:00:30]} Rd2 {[%emt 0:00:27]} 49. b5 {[%emt 0:00:07]} Ba8 {[%emt 0:00:01]} 50. b6 {[%emt 0:00:03]} Kg7 {[%emt 0:00:02]} 51. Rf7+ {[%emt 0:00:03]} Kg8 {[%emt 0:00:01]} 52. Rf6 {[%emt 0:00:12]} Kg7 {[%emt 0:00:03]} 53. Rf7+ {[%emt 0:00:01]} Kg8 {[%emt 0:00:01]} 54. Rf6 {[%emt 0:00:09]} Kg7 $1 {[%emt 0:00:01]} 55. Ne8+ {[%emt 0:00:02]} Kg8 {[%emt 0:00:03]} 56. c5 {[%emt 0:00:05][%cal Bc4c5,Bc5c6][%mdl 32]} Rxa2 {[%emt 0:00:11]} 57. c6 {[%emt 0:00:10]} Re2 {[%emt 0:00:04]} 58. Nc7 {[%emt 0:00:18]} Kg7 {[%emt 0:00:01] [#]} 59. Rd6 {[%emt 0:00:05]} (59. Nxa8 $142 $1 Kxf6 60. c7 Re4 61. c8=Q Re7 62. b7 Rxb7 63. Qxb7 g5 64. Nc7) 59... Bxc6 {[%emt 0:00:07]} 60. Rxc6 {[%emt 0:00:01] Threatening mate with Rc5.} Rxf2 {[%emt 0:00:02] KRN-KR} 61. b7 {[%emt 0:00:02]} Rb2 {[%emt 0:00:01]} 62. Ne6+ {[%emt 0:00:07]} Kf7 {[%emt 0:00:09]} 63. Nc5 {[%emt 0:00:02] White wants to mate with Rc7+.} Ke7 {[%emt 0:00:02]} 64. Rc8 {[%emt 0:00:03]} (64. Rxg6 $142 h5 65. Rg7+ Kd6 66. Na6 Ke6 67. b8=Q Rxb8 68. Nxb8 Kf6 69. Rh7) 64... Rb5 {[%emt 0:00:03]} 65. b8=Q {[%emt 0:00:03] Weighted Error Value: White=0.48/Black=0.34} 1-0

[Event "Szansa Chess Open 2022"]
[Site "Warsaw"]
[Date "2022.09.18"]
[Round "10.23"]
[White "Siekanska, Zuzanna"]
[Black "Piotrowski, Daniel"]
[Result "1/2-1/2"]
[ECO "B24"]
[WhiteElo "1898"]
[BlackElo "1758"]
[Annotator "NA COMBH"]
[PlyCount "114"]
[EventDate "2022.09.17"]
[EventCountry "POL"]
[SourceTitle "playchess.com"]
[Source "ChessBase"]
[SourceQuality "1"]
[TimeControl "900+10"]

1. Nc3 {[%emt 0:00:01]} c5 {[%emt 0:00:07]} 2. e4 {[%emt 0:00:02]} Nc6 {[%emt 0:00:08]} 3. Be2 {[%emt 0:00:30]} e5 {[%emt 0:00:41]} 4. d3 {[%emt 0:00:09]} Nge7 5. f4 {[%emt 0:00:15]} g6 {[%emt 0:02:00]} 6. Nf3 {[%emt 0:00:07]} Bg7 {[%emt 0:00:04]} 7. O-O {[%emt 0:00:30]} O-O {[%emt 0:00:12]} 8. fxe5 {[%emt 0:03:07]} Nxe5 {[%emt 0:01:10]} 9. Nxe5 {[%emt 0:00:11]} Bxe5 {[%emt 0:00:02]} 10. Bg5 {[%emt 0:00:01]} f6 {[%emt 0:01:18]} 11. Bf4 {[%emt 0:00:41]} d6 {[%emt 0:02:33]} 12. Rb1 {[%emt 0:01:48]} Be6 {[%emt 0:00:19]} 13. a3 {[%emt 0:02:06]} Qd7 {[%emt 0:00:44]} 14. Qd2 {[%emt 0:00:14]} Rad8 {[%emt 0:02:28]} 15. Rf2 {[%emt 0:00:06]} b6 {[%emt 0:01:51]} 16. Rbf1 {[%emt 0:01:05]} Bxf4 {[%emt 0:00:38]} 17. Qxf4 {[%emt 0:00:49]} Rf7 {[%emt 0:01:20]} 18. g4 {[%emt 0:00:20]} d5 {[%emt 0:00:11]} 19. Qg3 {[%emt 0:00:35]} Nc6 {[%emt 0:00:51]} 20. Rxf6 {[%emt 0:00:48]} Nd4 {[%emt 0:00:43]} 21. Bd1 {[%emt 0:00:37]} Rdf8 {[%emt 0:00:17]} 22. g5 {[%emt 0:00:31]} dxe4 {[%emt 0:00:33]} 23. Nxe4 {[%emt 0:00:07]} Nf5 {[%emt 0:00:02]} 24. Qe5 {[%emt 0:00:27]} Qd4+ {[%emt 0:00:32]} 25. Qxd4 {[%emt 0:00:01]} Nxd4 {[%emt 0:00:02]} 26. c3 {[%emt 0:02:00]} Nc6 {[%emt 0:00:07]} 27. Rxf7 {[%emt 0:00:02]} Rxf7 {[%emt 0:00:04]} 28. Nf6+ {[%emt 0:00:02]} Kg7 {[%emt 0:00:04]} 29. Re1 {[%emt 0:00:27]} Bf5 {[%emt 0:00:16]} 30. Bf3 {[%emt 0:00:58]} Re7 {[%emt 0:00:30]} 31. Rxe7+ {[%emt 0:00:54]} Nxe7 {[%emt 0:00:01]} 32. d4 {[%emt 0:00:08]} cxd4 {[%emt 0:00:19]} 33. cxd4 {[%emt 0:00:01]} Nc8 {[%emt 0:00:01]} 34. Ne4 {[%emt 0:00:25]} h6 {[%emt 0:00:10]} 35. gxh6+ {[%emt 0:00:17]} Kxh6 {[%emt 0:00:01]} 36. Kf2 {[%emt 0:00:00]} g5 {[%emt 0:00:33]} 37. d5 {[%emt 0:00:05]} Kg6 {[%emt 0:00:07]} 38. Ke3 {[%emt 0:00:02]} Bxe4 {[%emt 0:00:05]} 39. Bxe4+ {[%emt 0:00:09]} Kf6 {[%emt 0:00:01]} 40. Kd4 {[%emt 0:00:05]} Nd6 {[%emt 0:00:03]} 41. Bd3 {[%emt 0:00:01]} Nb7 {[%emt 0:00:24]} 42. b4 {[%emt 0:00:03]} Nd6 {[%emt 0:00:04]} 43. a4 {[%emt 0:00:54]} Nb7 {[%emt 0:00:02]} 44. d6 {[%emt 0:00:21]} Nxd6 {[%emt 0:00:06]} 45. Kd5 {[%emt 0:00:00]} Ke7 {[%emt 0:00:23]} 46. Kc6 {[%emt 0:00:19]} Nf7 {[%emt 0:00:19]} 47. Kb7 {[%emt 0:00:14]} Kd6 {[%emt 0:00:04]} 48. Kxa7 {[%emt 0:00:06]} Kc7 {[%emt 0:00:03]} 49. b5 {[%emt 0:00:22]} Nd6 {[%emt 0:00:27]} 50. Ka6 {[%emt 0:00:13]} Nb7 {[%emt 0:00:07]} 51. Ka7 {[%emt 0:00:04]} Nd6 {[%emt 0:00:02]} 52. Bc2 {[%emt 0:00:19]} Nc8+ {[%emt 0:00:08]} 53. Ka6 {[%emt 0:00:01]} Nd6 {[%emt 0:00:01]} 54. Bd3 {[%emt 0:00:01]} Nb7 {[%emt 0:00:07]} 55. Ka7 {[%emt 0:00:11]} Nd6 {[%emt 0:00:05]} 56. a5 {[%emt 0:00:16]} Nxb5+ {[%emt 0:00:02]} 57. Bxb5 {[%emt 0:00:05]} bxa5 {[%emt 0:00:01]} 1/2-1/2

[Event "Szansa Chess Open 2022"]
[Site "Warsaw"]
[Date "2022.09.18"]
[Round "10.24"]
[White "Wydmanski, Szymon"]
[Black "Chomczyk, Marek"]
[Result "0-1"]
[ECO "A05"]
[WhiteElo "1809"]
[BlackElo "2327"]
[Annotator "ChessBase"]
[PlyCount "142"]
[EventDate "2022.09.17"]
[EventCountry "POL"]
[SourceTitle "playchess.com"]
[Source "ChessBase"]
[SourceQuality "1"]
[TimeControl "900+10"]

1. Nf3 {[%emt 0:00:02]} Nf6 {[%emt 0:00:01]} 2. e3 c5 {[%emt 0:00:10]} 3. d4 {[%emt 0:00:18]} d5 {[%emt 0:00:03]} 4. b3 {[%emt 0:00:34]} cxd4 {[%emt 0:00:03]} 5. exd4 {[%emt 0:00:05]} Nc6 {[%emt 0:00:03]} 6. Bb2 {[%emt 0:00:05]} Bf5 {[%emt 0:00:05]} 7. Bd3 {[%emt 0:00:22]} Bxd3 {[%emt 0:00:21]} 8. Qxd3 {[%emt 0:00:10]} e6 {[%emt 0:00:02]} 9. a3 {[%emt 0:00:16]} Bd6 {[%emt 0:00:10]} 10. Nbd2 O-O {[%emt 0:00:06]} 11. O-O {[%emt 0:00:15]} Rc8 {[%emt 0:00:05]} 12. Ne5 {[%emt 0:00:25]} Nd7 {[%emt 0:00:35]} 13. f4 {[%emt 0:00:56]} Qc7 {[%emt 0:00:56]} 14. Ndf3 {[%emt 0:00:39]} f6 {[%emt 0:00:14]} 15. Nxd7 {[%emt 0:01:19]} Qxd7 {[%emt 0:00:04]} 16. Nd2 {[%emt 0:00:58]} Qc7 {[%emt 0:00:33]} 17. g3 {[%emt 0:02:02]} Ne7 {[%emt 0:02:23]} 18. c4 {[%emt 0:00:14]} b6 {[%emt 0:00:33]} 19. Rae1 {[%emt 0:00:28]} Qd7 {[%emt 0:00:57]} 20. Qe2 {[%emt 0:00:25]} Kf7 {[%emt 0:00:25]} 21. Qh5+ {[%emt 0:00:38]} Kg8 {[%emt 0:00:33]} 22. Qe2 {[%emt 0:01:53]} Kf7 {[%emt 0:00:12]} 23. Qh5+ {[%emt 0:02:31]} Kg8 {[%emt 0:00:09]} 24. Qe2 {[%emt 0:00:53]} Rc6 {[%emt 0:02:01]} 25. Qxe6+ {[%emt 0:00:20]} Qxe6 {[%emt 0:00:03]} 26. Rxe6 {[%emt 0:00:02]} Bxa3 {[%emt 0:00:42]} 27. Rxc6 {[%emt 0:00:38]} Bxb2 {[%emt 0:00:01]} 28. Rc7 {[%emt 0:00:23]} Bxd4+ {[%emt 0:00:02]} 29. Kh1 {[%emt 0:00:09]} Bc5 {[%emt 0:00:42]} 30. Re1 {[%emt 0:00:43]} dxc4 {[%emt 0:00:44]} 31. Nxc4 {[%emt 0:01:29]} Nf5 {[%emt 0:00:38]} 32. Rxa7 {[%emt 0:00:31]} b5 {[%emt 0:01:30]} 33. Ra5 {[%emt 0:00:41]} Nd4 {[%emt 0:00:35]} 34. Na3 {[%emt 0:00:14]} Bb4 {[%emt 0:00:13]} 35. Rd1 {[%emt 0:00:08]} Bxa5 {[%emt 0:00:19]} 36. Rxd4 {[%emt 0:00:02]} Bc3 {[%emt 0:01:25]} 37. Rd3 {[%emt 0:00:03]} b4 {[%emt 0:00:13]} 38. Nb5 {[%emt 0:00:12]} Rc8 {[%emt 0:00:29]} 39. Kg2 {[%emt 0:00:04]} Bb2 {[%emt 0:00:17]} 40. Rd2 {[%emt 0:00:26]} Bc1 {[%emt 0:00:06]} 41. Rd4 {[%emt 0:00:05]} Rc2+ {[%emt 0:00:03]} 42. Kf3 {[%emt 0:00:16]} Ba3 {[%emt 0:00:26]} 43. Nxa3 {[%emt 0:00:10]} Rc3+ {[%emt 0:00:00]} 44. Ke2 {[%emt 0:00:13]} bxa3 {[%emt 0:00:03]} 45. b4 {[%emt 0:00:10]} Rc2+ {[%emt 0:00:26]} 46. Kd3 {[%emt 0:00:09]} Rxh2 {[%emt 0:00:46]} 47. b5 {[%emt 0:00:08]} Rb2 {[%emt 0:00:03]} 48. Ra4 {[%emt 0:00:09]} a2 {[%emt 0:00:12]} 49. Kc4 {[%emt 0:00:14]} Kf7 {[%emt 0:00:25]} 50. Kc5 {[%emt 0:00:06]} Ke6 {[%emt 0:00:01]} 51. b6 {[%emt 0:00:09]} Rc2+ {[%emt 0:00:03]} 52. Kb5 {[%emt 0:00:09]} Kd7 {[%emt 0:00:21]} 53. Ka6 {[%emt 0:00:08]} Kc8 {[%emt 0:00:40]} 54. Ka7 {[%emt 0:00:05]} Rb2 {[%emt 0:00:08]} 55. Rc4+ {[%emt 0:00:09]} Kd7 {[%emt 0:00:01]} 56. Ra4 {[%emt 0:00:01]} Kc6 {[%emt 0:00:07]} 57. Ra3 {[%emt 0:00:35]} Rxb6 {[%emt 0:00:58]} 58. Rxa2 {[%emt 0:00:05]} Rb3 {[%emt 0:00:11]} 59. Rh2 {[%emt 0:00:14]} h6 {[%emt 0:00:01]} 60. Rg2 {[%emt 0:00:02]} Kd5 {[%emt 0:00:01]} 61. g4 {[%emt 0:00:18]} Ke4 {[%emt 0:00:04]} 62. g5 {[%emt 0:00:09]} hxg5 {[%emt 0:00:42]} 63. fxg5 {[%emt 0:00:03]} f5 {[%emt 0:00:01]} 64. Re2+ {[%emt 0:00:17]} Kf4 {[%emt 0:00:15]} 65. g6 {[%emt 0:00:09]} Kg5 {[%emt 0:00:15]} 66. Rg2+ {[%emt 0:00:10]} Kf6 {[%emt 0:00:01]} 67. Ka6 {[%emt 0:00:01]} f4 {[%emt 0:00:01]} 68. Ka5 {[%emt 0:00:06]} f3 {[%emt 0:00:05]} 69. Rf2 {[%emt 0:00:17]} Kxg6 {[%emt 0:00:06]} 70. Ka4 {[%emt 0:00:01]} Re3 {[%emt 0:00:02]} 71. Kb4 {[%emt 0:00:01]} Kf5 {[%emt 0:00:01]} 0-1

[Event "Szansa Chess Open 2022"]
[Site "Warsaw"]
[Date "2022.09.18"]
[Round "11.1"]
[White "Gumularz, Szymon"]
[Black "Kosakowski, Jakub"]
[Result "1-0"]
[ECO "E92"]
[WhiteElo "2532"]
[BlackElo "2457"]
[Annotator "ChessBase"]
[PlyCount "75"]
[EventDate "2022.09.17"]
[EventCountry "POL"]
[SourceTitle "playchess.com"]
[Source "ChessBase"]
[SourceQuality "1"]
[TimeControl "900+10"]

1. Nf3 {[%emt 0:00:03]} Nf6 {[%emt 0:00:06]} 2. c4 {[%emt 0:00:02]} g6 {[%emt 0:00:23]} 3. Nc3 {[%emt 0:00:05]} Bg7 {[%emt 0:00:04]} 4. e4 {[%emt 0:00:01]} d6 {[%emt 0:00:03]} 5. d4 {[%emt 0:00:02]} O-O {[%emt 0:00:04]} 6. Be2 {[%emt 0:00:02]} e5 {[%emt 0:00:04]} 7. Be3 {[%emt 0:00:10]} Ng4 {[%emt 0:00:19]} 8. Bg5 {[%emt 0:00:03]} f6 {[%emt 0:00:04]} 9. Bc1 {[%emt 0:00:02]} Nc6 {[%emt 0:00:17]} 10. d5 {[%emt 0:01:20]} Nd4 {[%emt 0:01:21]} 11. h3 {[%emt 0:01:30]} Nxe2 {[%emt 0:00:36]} 12. Qxe2 {[%emt 0:00:02]} Nh6 {[%emt 0:00:02]} 13. g4 {[%emt 0:00:07]} c5 {[%emt 0:00:32]} 14. Rg1 {[%emt 0:00:11]} Nf7 {[%emt 0:00:22]} 15. Be3 {[%emt 0:00:06]} Kh8 {[%emt 0:01:47]} 16. h4 {[%emt 0:00:13]} f5 {[%emt 0:00:56]} 17. g5 {[%emt 0:00:13]} Bd7 {[%emt 0:00:42]} 18. h5 {[%emt 0:00:34]} f4 {[%emt 0:01:25]} 19. hxg6 {[%emt 0:01:33]} fxe3 {[%emt 0:00:47]} 20. gxf7 {[%emt 0:00:02]} exf2+ {[%emt 0:00:03]} 21. Qxf2 {[%emt 0:00:02]} Rxf7 {[%emt 0:00:24]} 22. O-O-O {[%emt 0:00:57]} Rf4 {[%emt 0:01:25]} 23. Qe3 {[%emt 0:01:16]} Qe7 {[%emt 0:00:22]} 24. Ne2 {[%emt 0:00:05]} Rg4 {[%emt 0:00:15]} 25. Rxg4 {[%emt 0:00:10]} Bxg4 {[%emt 0:00:02]} 26. Rg1 {[%emt 0:00:02]} Qd7 {[%emt 0:01:21]} 27. Ng3 {[%emt 0:00:27]} Qa4 {[%emt 0:00:55]} 28. Kb1 {[%emt 0:03:25]} Qxc4 {[%emt 0:02:14]} 29. Nf5 {[%emt 0:00:09]} Bxf5 {[%emt 0:01:52]} 30. exf5 {[%emt 0:00:02]} e4 {[%emt 0:00:14]} 31. f6 {[%emt 0:00:01]} Bf8 {[%emt 0:00:01]} 32. g6 {[%emt 0:00:10]} hxg6 {[%emt 0:00:15]} 33. Ng5 {[%emt 0:00:22]} Kg8 {[%emt 0:00:32]} 34. Rh1 {[%emt 0:01:05]} Bh6 {[%emt 0:00:46]} 35. Rxh6 {[%emt 0:00:22]} Qf1+ {[%emt 0:00:02]} 36. Qc1 {[%emt 0:01:27]} Qxf6 {[%emt 0:00:16]} 37. Ne6 {[%emt 0:00:10]} Qf5 {[%emt 0:00:16]} 38. Rh8+ {[%emt 0:00:25]} 1-0